[Event "Titled Tuesday Blitz May 9 Late 2023"]
[White "Matinian, Nikita"]
[Black "Kamsky, Gata"]
[WhiteFideId "24129100"]
[BlackFideId "2000024"]
[WhiteElo "2422"]
[BlackElo "2660"]
[Result "1-0"]
[Round "03"]
[TimeControl "180+2"]
[Date "2023.05.09"]
[WhiteClock "0:00:18"]
[BlackClock "0:00:00"]

1. e4 {[%clk 0:03:00]}  c5 {[%clk 0:02:59]} 2. Nf3 {[%clk 0:03:00]}  e6 {[%clk 0:02:58]} 3. d4 {[%clk 0:03:01]}  cxd4 {[%clk 0:02:58]} 4. Nxd4 {[%clk 0:03:02]}  a6 {[%clk 0:02:59]} 5. Nc3 {[%clk 0:03:02]}  b5 {[%clk 0:02:58]} 6. Bd3 {[%clk 0:03:02]}  Qb6 {[%clk 0:02:57]} 7. Nb3 {[%clk 0:03:02]}  Qc7 {[%clk 0:02:57]} 8. O-O {[%clk 0:03:02]}  Nc6 {[%clk 0:02:57]} 9. Re1 {[%clk 0:03:02]}  Nge7 {[%clk 0:02:53]} 10. Qh5 {[%clk 0:02:49]}  Ng6 {[%clk 0:02:47]} 11. a4 {[%clk 0:02:43]}  b4 {[%clk 0:02:42]} 12. Nd5 {[%clk 0:02:44]}  Qb8 {[%clk 0:02:35]} 13. a5 {[%clk 0:02:38]}  exd5 {[%clk 0:02:11]} 14. exd5+ {[%clk 0:02:39]}  Nce7 {[%clk 0:02:11]} 15. Bg5 {[%clk 0:02:24]}  f6 {[%clk 0:01:47]} 16. Bxg6+ {[%clk 0:01:56]}  hxg6 {[%clk 0:01:30]} 17. Qxh8 {[%clk 0:01:55]}  fxg5 {[%clk 0:01:30]} 18. Re3 {[%clk 0:01:22]}  Bb7 {[%clk 0:01:19]} 19. Rae1 {[%clk 0:01:05]}  Kf7 {[%clk 0:01:18]} 20. Nc5 {[%clk 0:00:48]}  Qc7 {[%clk 0:00:54]} 21. d6 {[%clk 0:00:32]}  Qxc5 {[%clk 0:00:27]} 22. dxe7 {[%clk 0:00:31]}  Kf6 {[%clk 0:00:15]} 23. e8=Q {[%clk 0:00:20]}  Rxe8 {[%clk 0:00:14]} 24. Rxe8 {[%clk 0:00:21]}  Kf7 {[%clk 0:00:08]} 25. Qxf8+ {[%clk 0:00:18]}  Qxf8 {[%clk 0:00:08]} 26. Rxf8+ {[%clk 0:00:19]}  Kxf8 {[%clk 0:00:08]} 27. c3 {[%clk 0:00:18]}  bxc3 {[%clk 0:00:06]} 28. bxc3 {[%clk 0:00:19]}  Kf7 {[%clk 0:00:04]} 29. Rb1 {[%clk 0:00:19]}  Bd5 {[%clk 0:00:04]} 30. Rb6 {[%clk 0:00:18]}  Bc4 {[%clk 0:00:04]} 31. f3 {[%clk 0:00:18]}  g4 {[%clk 0:00:03]} 32. fxg4 {[%clk 0:00:18]}  g5 {[%clk 0:00:00]} 33. Kf2 {[%clk 0:00:18]} 1-0


[Site "https://www.chess.com"]

[Event "Titled Tuesday Blitz May 9 Late 2023"]
[White "Pichot, Alan"]
[Black "Volkov, Maksim"]
[WhiteFideId "110973"]
[BlackFideId "54123070"]
[WhiteElo "2573"]
[BlackElo "2297"]
[Result "0-1"]
[Round "03"]
[TimeControl "180+2"]
[Date "2023.05.09"]
[WhiteClock "0:00:01"]
[BlackClock "0:00:36"]

1. e4 {[%clk 0:03:00]}  e6 {[%clk 0:03:00]} 2. d4 {[%clk 0:02:56]}  d5 {[%clk 0:03:00]} 3. Nc3 {[%clk 0:02:57]}  Bb4 {[%clk 0:02:59]} 4. e5 {[%clk 0:02:56]}  c5 {[%clk 0:03:00]} 5. a3 {[%clk 0:02:57]}  Bxc3+ {[%clk 0:03:00]} 6. bxc3 {[%clk 0:02:58]}  Qa5 {[%clk 0:03:01]} 7. Bd2 {[%clk 0:02:57]}  Qa4 {[%clk 0:03:01]} 8. Qb1 {[%clk 0:02:57]}  c4 {[%clk 0:03:01]} 9. h4 {[%clk 0:02:56]}  Nc6 {[%clk 0:03:02]} 10. h5 {[%clk 0:02:55]}  h6 {[%clk 0:03:02]} 11. g3 {[%clk 0:02:55]}  Nge7 {[%clk 0:03:01]} 12. Bh3 {[%clk 0:02:39]}  Bd7 {[%clk 0:03:02]} 13. f4 {[%clk 0:02:26]}  O-O-O {[%clk 0:03:01]} 14. Nf3 {[%clk 0:02:27]}  f6 {[%clk 0:02:56]} 15. Ra2 {[%clk 0:02:22]}  Rdf8 {[%clk 0:02:55]} 16. O-O {[%clk 0:02:19]}  b6 {[%clk 0:02:50]} 17. Qe1 {[%clk 0:02:15]}  Kb7 {[%clk 0:02:46]} 18. exf6 {[%clk 0:01:50]}  Rxf6 {[%clk 0:02:46]} 19. Ne5 {[%clk 0:01:51]}  Nd8 {[%clk 0:02:36]} 20. Qb1 {[%clk 0:01:36]}  Be8 {[%clk 0:02:31]} 21. Qb4 {[%clk 0:01:28]}  Qxb4 {[%clk 0:02:21]} 22. axb4 {[%clk 0:01:29]}  Bxh5 {[%clk 0:02:19]} 23. Rfa1 {[%clk 0:01:15]}  Nc8 {[%clk 0:02:19]} 24. Bg2 {[%clk 0:01:07]}  Nc6 {[%clk 0:02:03]} 25. b5 {[%clk 0:00:25]}  Nxe5 {[%clk 0:01:46]} 26. dxe5 {[%clk 0:00:25]}  Rff8 {[%clk 0:01:44]} 27. Bh3 {[%clk 0:00:26]}  Re8 {[%clk 0:01:40]} 28. Be3 {[%clk 0:00:26]}  Bg6 {[%clk 0:01:39]} 29. Bd4 {[%clk 0:00:23]}  Be4 {[%clk 0:01:36]} 30. Re1 {[%clk 0:00:19]}  g5 {[%clk 0:01:33]} 31. Rxe4 {[%clk 0:00:18]}  dxe4 {[%clk 0:01:32]} 32. f5 {[%clk 0:00:18]}  g4 {[%clk 0:01:20]} 33. Bxg4 {[%clk 0:00:16]}  Rhg8 {[%clk 0:01:21]} 34. Bh5 {[%clk 0:00:11]}  exf5 {[%clk 0:01:11]} 35. Bxe8 {[%clk 0:00:11]}  Rxe8 {[%clk 0:01:11]} 36. Kf2 {[%clk 0:00:09]}  Ne7 {[%clk 0:01:09]} 37. Ra4 {[%clk 0:00:08]}  Ng6 {[%clk 0:01:05]} 38. Rxc4 {[%clk 0:00:08]}  Nxe5 {[%clk 0:01:05]} 39. Ra4 {[%clk 0:00:09]}  Ng4+ {[%clk 0:01:03]} 40. Ke2 {[%clk 0:00:10]}  h5 {[%clk 0:01:00]} 41. Ra1 {[%clk 0:00:03]}  Re7 {[%clk 0:00:56]} 42. Rh1 {[%clk 0:00:02]}  Rh7 {[%clk 0:00:56]} 43. Rh4 {[%clk 0:00:03]}  Kc7 {[%clk 0:00:54]} 44. c4 {[%clk 0:00:04]}  Kd6 {[%clk 0:00:55]} 45. Kd2 {[%clk 0:00:04]}  Ke6 {[%clk 0:00:54]} 46. Kc3 {[%clk 0:00:05]}  Kf7 {[%clk 0:00:53]} 47. c5 {[%clk 0:00:05]}  bxc5 {[%clk 0:00:52]} 48. Bxc5 {[%clk 0:00:06]}  Ke6 {[%clk 0:00:53]} 49. Kb4 {[%clk 0:00:06]}  Kd5 {[%clk 0:00:53]} 50. c4+ {[%clk 0:00:07]}  Ke5 {[%clk 0:00:51]} 51. Kc3 {[%clk 0:00:02]}  e3 {[%clk 0:00:47]} 52. Bd4+ {[%clk 0:00:01]}  Ke4 {[%clk 0:00:46]} 53. Rh1 {[%clk 0:00:02]}  Rd7 {[%clk 0:00:41]} 54. Bc5 {[%clk 0:00:02]}  e2 {[%clk 0:00:39]} 55. Re1 {[%clk 0:00:03]}  Kf3 {[%clk 0:00:39]} 56. Kc2 {[%clk 0:00:03]}  Ne3+ {[%clk 0:00:38]} 57. Kb3 {[%clk 0:00:04]}  Ng2 {[%clk 0:00:38]} 58. Rg1 {[%clk 0:00:02]}  e1=Q {[%clk 0:00:38]} 59. Rxe1 {[%clk 0:00:02]}  Nxe1 {[%clk 0:00:39]} 60. Ka4 {[%clk 0:00:01]}  Nd3 {[%clk 0:00:39]} 61. Bg1 {[%clk 0:00:01]}  Kxg3 {[%clk 0:00:39]} 62. Ka5 {[%clk 0:00:01]}  f4 {[%clk 0:00:38]} 63. Ka6 {[%clk 0:00:01]}  f3 {[%clk 0:00:36]} 64. Bxa7 {[%clk 0:00:01]}  Rxa7+ {[%clk 0:00:36]} 0-1


[Site "https://www.chess.com"]

[Event "Titled Tuesday Blitz May 9 Late 2023"]
[White "Xiong, Jeffery"]
[Black "Annaberdiyev, Meylis"]
[WhiteFideId "2047640"]
[BlackFideId "14000563"]
[WhiteElo "2726"]
[BlackElo "2416"]
[Result "1-0"]
[Round "03"]
[TimeControl "180+2"]
[Date "2023.05.09"]
[WhiteClock "0:01:25"]
[BlackClock "0:00:00"]

1. d4 {[%clk 0:03:00]}  Nf6 {[%clk 0:02:58]} 2. Nf3 {[%clk 0:03:01]}  g6 {[%clk 0:02:58]} 3. Nbd2 {[%clk 0:03:01]}  Bg7 {[%clk 0:02:55]} 4. e4 {[%clk 0:03:02]}  d6 {[%clk 0:02:55]} 5. Bd3 {[%clk 0:03:02]}  O-O {[%clk 0:02:55]} 6. O-O {[%clk 0:03:02]}  Nc6 {[%clk 0:02:54]} 7. c3 {[%clk 0:03:03]}  e5 {[%clk 0:02:54]} 8. dxe5 {[%clk 0:03:03]}  Nxe5 {[%clk 0:02:51]} 9. Nxe5 {[%clk 0:03:04]}  dxe5 {[%clk 0:02:52]} 10. Nc4 {[%clk 0:03:04]}  Nh5 {[%clk 0:02:46]} 11. g3 {[%clk 0:03:02]}  Be6 {[%clk 0:02:39]} 12. Qe2 {[%clk 0:03:01]}  Qe7 {[%clk 0:02:26]} 13. Be3 {[%clk 0:02:54]}  Rad8 {[%clk 0:02:19]} 14. Na5 {[%clk 0:02:50]}  Bc8 {[%clk 0:02:03]} 15. b4 {[%clk 0:02:47]}  b6 {[%clk 0:01:47]} 16. Nc6 {[%clk 0:02:46]}  Qf6 {[%clk 0:01:33]} 17. Nxd8 {[%clk 0:02:46]}  Rxd8 {[%clk 0:01:34]} 18. Rfd1 {[%clk 0:02:40]}  Bh3 {[%clk 0:01:17]} 19. f3 {[%clk 0:02:33]}  Qe7 {[%clk 0:01:09]} 20. Bb5 {[%clk 0:02:31]}  Rf8 {[%clk 0:01:07]} 21. Bc6 {[%clk 0:02:30]}  f5 {[%clk 0:00:51]} 22. Rd7 {[%clk 0:02:30]}  Qf6 {[%clk 0:00:51]} 23. Rxc7 {[%clk 0:02:25]}  f4 {[%clk 0:00:31]} 24. Bf2 {[%clk 0:02:25]}  fxg3 {[%clk 0:00:30]} 25. hxg3 {[%clk 0:02:26]}  Qg5 {[%clk 0:00:30]} 26. Kh2 {[%clk 0:02:24]}  Nf4 {[%clk 0:00:28]} 27. Qc4+ {[%clk 0:01:42]}  Be6 {[%clk 0:00:28]} 28. Bd5 {[%clk 0:01:40]}  Qh5+ {[%clk 0:00:17]} 29. Kg1 {[%clk 0:01:40]}  Nxd5 {[%clk 0:00:10]} 30. exd5 {[%clk 0:01:41]}  Qxf3 {[%clk 0:00:10]} 31. dxe6 {[%clk 0:01:26]}  Qxf2+ {[%clk 0:00:10]} 32. Kh1 {[%clk 0:01:27]}  Qf3+ {[%clk 0:00:10]} 33. Kh2 {[%clk 0:01:27]}  Qh5+ {[%clk 0:00:10]} 34. Kg2 {[%clk 0:01:26]}  Qf3+ {[%clk 0:00:10]} 35. Kh3 {[%clk 0:01:27]}  Rf4 {[%clk 0:00:03]} 36. e7+ {[%clk 0:01:24]}  Rxc4 {[%clk 0:00:01]} 37. e8=Q+ {[%clk 0:01:24]}  Bf8 {[%clk 0:00:00]} 38. Qe6+ {[%clk 0:01:25]} 1-0


[Site "https://www.chess.com"]

[Event "Titled Tuesday Blitz May 9 Late 2023"]
[White "Ohanyan, Emin"]
[Black "Arabidze, Meri"]
[WhiteFideId "13312022"]
[BlackFideId "13604040"]
[WhiteElo "2411"]
[BlackElo "2405"]
[Result "0-1"]
[Round "03"]
[TimeControl "180+2"]
[Date "2023.05.09"]
[WhiteClock "0:00:01"]
[BlackClock "0:00:16"]

1. e4 {[%clk 0:03:00]}  c5 {[%clk 0:02:59]} 2. Nf3 {[%clk 0:03:01]}  e6 {[%clk 0:03:00]} 3. d4 {[%clk 0:03:01]}  cxd4 {[%clk 0:03:01]} 4. Nxd4 {[%clk 0:03:01]}  Nc6 {[%clk 0:03:01]} 5. Nc3 {[%clk 0:03:02]}  a6 {[%clk 0:03:01]} 6. Nxc6 {[%clk 0:03:02]}  bxc6 {[%clk 0:03:01]} 7. Bd3 {[%clk 0:03:03]}  d5 {[%clk 0:03:02]} 8. O-O {[%clk 0:03:03]}  Nf6 {[%clk 0:03:03]} 9. e5 {[%clk 0:03:03]}  Nd7 {[%clk 0:03:02]} 10. Re1 {[%clk 0:03:04]}  Qc7 {[%clk 0:03:02]} 11. Bf4 {[%clk 0:02:55]}  Be7 {[%clk 0:03:02]} 12. Qg4 {[%clk 0:02:54]}  g5 {[%clk 0:02:58]} 13. Bd2 {[%clk 0:02:38]}  Nxe5 {[%clk 0:02:47]} 14. Qg3 {[%clk 0:02:38]}  f6 {[%clk 0:02:38]} 15. f4 {[%clk 0:02:03]}  Nxd3 {[%clk 0:02:33]} 16. cxd3 {[%clk 0:02:02]}  O-O {[%clk 0:02:21]} 17. h4 {[%clk 0:01:47]}  Kh8 {[%clk 0:02:07]} 18. hxg5 {[%clk 0:01:41]}  fxg5 {[%clk 0:02:06]} 19. Re5 {[%clk 0:01:41]}  Bf6 {[%clk 0:02:02]} 20. Rae1 {[%clk 0:00:56]}  Bd7 {[%clk 0:01:41]} 21. fxg5 {[%clk 0:00:46]}  Bxe5 {[%clk 0:01:41]} 22. Rxe5 {[%clk 0:00:47]}  Be8 {[%clk 0:01:41]} 23. Bf4 {[%clk 0:00:44]}  Qf7 {[%clk 0:01:37]} 24. Ne2 {[%clk 0:00:41]}  c5 {[%clk 0:01:32]} 25. Re3 {[%clk 0:00:38]}  Kg8 {[%clk 0:01:26]} 26. Rf3 {[%clk 0:00:19]}  Qh5 {[%clk 0:01:26]} 27. Be5 {[%clk 0:00:09]}  Rxf3 {[%clk 0:01:24]} 28. gxf3 {[%clk 0:00:10]}  Qf7 {[%clk 0:01:13]} 29. Nf4 {[%clk 0:00:05]}  Qf5 {[%clk 0:01:13]} 30. Ng2 {[%clk 0:00:04]}  Bg6 {[%clk 0:01:09]} 31. d4 {[%clk 0:00:02]}  c4 {[%clk 0:01:00]} 32. Qf2 {[%clk 0:00:02]}  Qc2 {[%clk 0:00:57]} 33. Nf4 {[%clk 0:00:01]}  Qxf2+ {[%clk 0:00:57]} 34. Kxf2 {[%clk 0:00:02]}  Bf5 {[%clk 0:00:55]} 35. Ke3 {[%clk 0:00:02]}  a5 {[%clk 0:00:54]} 36. Kd2 {[%clk 0:00:02]}  Kf7 {[%clk 0:00:52]} 37. Ne2 {[%clk 0:00:01]}  Kg6 {[%clk 0:00:48]} 38. f4 {[%clk 0:00:02]}  Kh5 {[%clk 0:00:47]} 39. Nc3 {[%clk 0:00:02]}  Kg4 {[%clk 0:00:46]} 40. a4 {[%clk 0:00:02]}  Ra7 {[%clk 0:00:43]} 41. Nb5 {[%clk 0:00:03]}  Rb7 {[%clk 0:00:43]} 42. Kc3 {[%clk 0:00:03]}  Kf3 {[%clk 0:00:39]} 43. Bc7 {[%clk 0:00:03]}  Bd3 {[%clk 0:00:21]} 44. Bxa5 {[%clk 0:00:02]}  Kxf4 {[%clk 0:00:21]} 45. Bb4 {[%clk 0:00:02]}  Kxg5 {[%clk 0:00:20]} 46. Nd6 {[%clk 0:00:02]}  Rb8 {[%clk 0:00:18]} 47. a5 {[%clk 0:00:03]}  Ra8 {[%clk 0:00:18]} 48. Nb5 {[%clk 0:00:02]}  h5 {[%clk 0:00:18]} 49. Nc7 {[%clk 0:00:02]}  Ra7 {[%clk 0:00:18]} 50. Nxe6+ {[%clk 0:00:02]}  Kf5 {[%clk 0:00:17]} 51. Ng7+ {[%clk 0:00:02]}  Rxg7 {[%clk 0:00:16]} 52. Bc5 {[%clk 0:00:02]}  Rg8 {[%clk 0:00:16]} 53. a6 {[%clk 0:00:02]}  Ra8 {[%clk 0:00:16]} 54. a7 {[%clk 0:00:02]}  h4 {[%clk 0:00:17]} 55. Bd6 {[%clk 0:00:03]}  Rxa7 {[%clk 0:00:16]} 56. Bb8 {[%clk 0:00:01]}  Rb7 {[%clk 0:00:16]} 0-1


[Site "https://www.chess.com"]

[Event "Titled Tuesday Blitz May 9 Late 2023"]
[White "Seemann, Jakub"]
[Black "Bachmann, Axel"]
[WhiteFideId "21874697"]
[BlackFideId "3700488"]
[WhiteElo "2364"]
[BlackElo "2605"]
[Result "1-0"]
[Round "03"]
[TimeControl "180+2"]
[Date "2023.05.09"]
[WhiteClock "0:00:05"]
[BlackClock "0:00:22"]

1. e4 {[%clk 0:03:00]}  Nc6 {[%clk 0:02:56]} 2. d4 {[%clk 0:03:00]}  d6 {[%clk 0:02:57]} 3. Nc3 {[%clk 0:02:59]}  Nf6 {[%clk 0:02:57]} 4. f4 {[%clk 0:02:58]}  e5 {[%clk 0:02:54]} 5. Nf3 {[%clk 0:02:56]}  exd4 {[%clk 0:02:52]} 6. Nxd4 {[%clk 0:02:56]}  g6 {[%clk 0:02:53]} 7. Be2 {[%clk 0:02:48]}  Bg7 {[%clk 0:02:52]} 8. Nxc6 {[%clk 0:02:48]}  bxc6 {[%clk 0:02:52]} 9. O-O {[%clk 0:02:49]}  O-O {[%clk 0:02:53]} 10. Bf3 {[%clk 0:02:45]}  Rb8 {[%clk 0:02:52]} 11. Rb1 {[%clk 0:02:28]}  Nd7 {[%clk 0:02:35]} 12. Be3 {[%clk 0:02:26]}  Nb6 {[%clk 0:02:34]} 13. Qd3 {[%clk 0:02:18]}  Re8 {[%clk 0:02:21]} 14. b3 {[%clk 0:02:08]}  c5 {[%clk 0:02:15]} 15. Rfe1 {[%clk 0:02:03]}  Bb7 {[%clk 0:02:12]} 16. Bf2 {[%clk 0:02:01]}  Qf6 {[%clk 0:02:03]} 17. Ne2 {[%clk 0:01:40]}  c4 {[%clk 0:02:03]} 18. bxc4 {[%clk 0:01:35]}  Ba6 {[%clk 0:02:02]} 19. Bd4 {[%clk 0:01:20]}  Qe6 {[%clk 0:02:00]} 20. Bxg7 {[%clk 0:01:20]}  Kxg7 {[%clk 0:02:01]} 21. Qd4+ {[%clk 0:01:07]}  Qf6 {[%clk 0:01:59]} 22. Qxf6+ {[%clk 0:01:02]}  Kxf6 {[%clk 0:02:00]} 23. c5 {[%clk 0:01:03]}  Bxe2 {[%clk 0:01:51]} 24. Rxe2 {[%clk 0:00:42]}  Nc4 {[%clk 0:01:40]} 25. Rb3 {[%clk 0:00:33]}  Kg7 {[%clk 0:01:36]} 26. cxd6 {[%clk 0:00:32]}  cxd6 {[%clk 0:01:37]} 27. Kf2 {[%clk 0:00:28]}  Rec8 {[%clk 0:01:33]} 28. g3 {[%clk 0:00:24]}  Rb6 {[%clk 0:01:16]} 29. Ke1 {[%clk 0:00:21]}  Ra6 {[%clk 0:01:15]} 30. c3 {[%clk 0:00:20]}  Rc5 {[%clk 0:01:09]} 31. Rc2 {[%clk 0:00:19]}  Na3 {[%clk 0:01:04]} 32. Rc1 {[%clk 0:00:18]}  Nb5 {[%clk 0:01:01]} 33. Be2 {[%clk 0:00:17]}  Ra5 {[%clk 0:00:49]} 34. Bxb5 {[%clk 0:00:17]}  Raxb5 {[%clk 0:00:50]} 35. Rxb5 {[%clk 0:00:18]}  Rxb5 {[%clk 0:00:50]} 36. Kd2 {[%clk 0:00:18]}  h5 {[%clk 0:00:47]} 37. Rc2 {[%clk 0:00:18]}  h4 {[%clk 0:00:47]} 38. Kd3 {[%clk 0:00:17]}  Rb1 {[%clk 0:00:47]} 39. gxh4 {[%clk 0:00:10]}  Kf6 {[%clk 0:00:41]} 40. Kc4 {[%clk 0:00:09]}  Rf1 {[%clk 0:00:39]} 41. Kd5 {[%clk 0:00:09]}  Rxf4 {[%clk 0:00:36]} 42. Kxd6 {[%clk 0:00:06]}  Rxe4 {[%clk 0:00:36]} 43. c4 {[%clk 0:00:07]}  Rd4+ {[%clk 0:00:37]} 44. Kc7 {[%clk 0:00:06]}  Rxh4 {[%clk 0:00:37]} 45. c5 {[%clk 0:00:07]}  Ke5 {[%clk 0:00:36]} 46. c6 {[%clk 0:00:07]}  a5 {[%clk 0:00:28]} 47. Kb7 {[%clk 0:00:07]}  f5 {[%clk 0:00:27]} 48. c7 {[%clk 0:00:07]}  Rh8 {[%clk 0:00:28]} 49. c8=Q {[%clk 0:00:04]}  Rxc8 {[%clk 0:00:28]} 50. Kxc8 {[%clk 0:00:05]}  f4 {[%clk 0:00:29]} 51. Kb7 {[%clk 0:00:06]}  Ke4 {[%clk 0:00:28]} 52. a4 {[%clk 0:00:04]}  Kd3 {[%clk 0:00:29]} 53. Ra2 {[%clk 0:00:05]}  g5 {[%clk 0:00:22]} 54. Kb6 {[%clk 0:00:05]} 1-0


[Site "https://www.chess.com"]

[Event "Titled Tuesday Blitz May 9 Late 2023"]
[White "Wieczorek, Oskar"]
[Black "Kravtsiv, Martyn"]
[WhiteFideId "1133950"]
[BlackFideId "14113147"]
[WhiteElo "2418"]
[BlackElo "2695"]
[Result "1-0"]
[Round "03"]
[TimeControl "180+2"]
[Date "2023.05.09"]
[WhiteClock "0:00:21"]
[BlackClock "0:00:04"]

1. e4 {[%clk 0:03:00]}  e5 {[%clk 0:02:59]} 2. Nf3 {[%clk 0:03:01]}  Nc6 {[%clk 0:03:00]} 3. Nc3 {[%clk 0:03:01]}  Nf6 {[%clk 0:02:59]} 4. h3 {[%clk 0:03:01]}  d5 {[%clk 0:02:57]} 5. exd5 {[%clk 0:03:01]}  Nxd5 {[%clk 0:02:58]} 6. Bb5 {[%clk 0:03:01]}  Nxc3 {[%clk 0:02:58]} 7. bxc3 {[%clk 0:03:02]}  Bd6 {[%clk 0:02:57]} 8. O-O {[%clk 0:03:02]}  O-O {[%clk 0:02:56]} 9. d4 {[%clk 0:03:03]}  exd4 {[%clk 0:02:48]} 10. cxd4 {[%clk 0:03:04]}  h6 {[%clk 0:02:39]} 11. c4 {[%clk 0:03:02]}  Nb4 {[%clk 0:02:31]} 12. a3 {[%clk 0:02:44]}  c6 {[%clk 0:02:30]} 13. Ba4 {[%clk 0:02:43]}  Na6 {[%clk 0:02:30]} 14. Bc2 {[%clk 0:02:36]}  Bc7 {[%clk 0:01:48]} 15. Qd3 {[%clk 0:02:25]}  f5 {[%clk 0:01:48]} 16. Re1 {[%clk 0:02:20]}  Qf6 {[%clk 0:01:37]} 17. Rb1 {[%clk 0:02:05]}  Rb8 {[%clk 0:01:28]} 18. Bb2 {[%clk 0:02:01]}  Qf7 {[%clk 0:01:27]} 19. Ne5 {[%clk 0:01:56]}  Bxe5 {[%clk 0:01:26]} 20. Rxe5 {[%clk 0:01:56]}  Nc7 {[%clk 0:01:16]} 21. Rbe1 {[%clk 0:01:53]}  Re8 {[%clk 0:01:09]} 22. d5 {[%clk 0:01:21]}  Bd7 {[%clk 0:01:00]} 23. d6 {[%clk 0:01:14]}  Ne6 {[%clk 0:00:34]} 24. Rxf5 {[%clk 0:01:06]}  Qg6 {[%clk 0:00:34]} 25. Qc3 {[%clk 0:00:41]}  Nf4 {[%clk 0:00:14]} 26. Rxe8+ {[%clk 0:00:36]}  Rxe8 {[%clk 0:00:14]} 27. Rxf4 {[%clk 0:00:29]}  Qg5 {[%clk 0:00:12]} 28. h4 {[%clk 0:00:23]}  Re1+ {[%clk 0:00:08]} 29. Qxe1 {[%clk 0:00:23]}  Qxf4 {[%clk 0:00:09]} 30. Qe7 {[%clk 0:00:21]}  Qf7 {[%clk 0:00:04]} 31. Bh7+ {[%clk 0:00:21]} 1-0


[Site "https://www.chess.com"]

[Event "Titled Tuesday Blitz May 9 Late 2023"]
[White "Pakleza, Zbigniew"]
[Black "Martinez Reyes, Pedro Ramon"]
[WhiteFideId "1119290"]
[BlackFideId "3901807"]
[WhiteElo "2410"]
[BlackElo "2340"]
[Result "1/2-1/2"]
[Round "03"]
[TimeControl "180+2"]
[Date "2023.05.09"]
[WhiteClock "0:00:03"]
[BlackClock "0:00:13"]

1. d4 {[%clk 0:03:00]}  d5 {[%clk 0:02:54]} 2. Bf4 {[%clk 0:03:00]}  c5 {[%clk 0:02:49]} 3. e3 {[%clk 0:03:00]}  Nf6 {[%clk 0:02:49]} 4. c3 {[%clk 0:03:00]}  Nc6 {[%clk 0:02:49]} 5. Nd2 {[%clk 0:03:01]}  cxd4 {[%clk 0:02:49]} 6. cxd4 {[%clk 0:03:01]}  a6 {[%clk 0:02:49]} 7. Bd3 {[%clk 0:02:58]}  Bg4 {[%clk 0:02:49]} 8. Ngf3 {[%clk 0:02:58]}  e6 {[%clk 0:02:49]} 9. h3 {[%clk 0:02:59]}  Bxf3 {[%clk 0:02:45]} 10. Qxf3 {[%clk 0:02:55]}  Bb4 {[%clk 0:02:43]} 11. Qe2 {[%clk 0:02:47]}  Qa5 {[%clk 0:02:41]} 12. a3 {[%clk 0:02:44]}  Rc8 {[%clk 0:02:30]} 13. Rc1 {[%clk 0:02:38]}  Be7 {[%clk 0:02:08]} 14. O-O {[%clk 0:02:35]}  O-O {[%clk 0:02:05]} 15. Nb3 {[%clk 0:02:26]}  Qb6 {[%clk 0:01:58]} 16. Nc5 {[%clk 0:02:25]}  Rfd8 {[%clk 0:01:47]} 17. b4 {[%clk 0:02:12]}  h6 {[%clk 0:01:41]} 18. Rc2 {[%clk 0:02:06]}  Bd6 {[%clk 0:01:41]} 19. Bxd6 {[%clk 0:02:02]}  Rxd6 {[%clk 0:01:42]} 20. Rfc1 {[%clk 0:01:59]}  Rdd8 {[%clk 0:01:41]} 21. Nxb7 {[%clk 0:01:26]}  Nxd4 {[%clk 0:00:51]} 22. exd4 {[%clk 0:01:27]}  Rxc2 {[%clk 0:00:50]} 23. Rxc2 {[%clk 0:01:22]}  Qxb7 {[%clk 0:00:50]} 24. Bxa6 {[%clk 0:01:22]}  Qb6 {[%clk 0:00:50]} 25. Qd3 {[%clk 0:01:16]}  Ne4 {[%clk 0:00:44]} 26. b5 {[%clk 0:00:53]}  Qa5 {[%clk 0:00:43]} 27. Kh2 {[%clk 0:00:46]}  h5 {[%clk 0:00:41]} 28. h4 {[%clk 0:00:36]}  Rb8 {[%clk 0:00:25]} 29. f3 {[%clk 0:00:19]}  Nd6 {[%clk 0:00:24]} 30. Qc3 {[%clk 0:00:19]}  Qd8 {[%clk 0:00:24]} 31. g3 {[%clk 0:00:06]}  Nxb5 {[%clk 0:00:23]} 32. Bxb5 {[%clk 0:00:04]}  Rxb5 {[%clk 0:00:24]} 33. Qc8 {[%clk 0:00:04]}  Qxc8 {[%clk 0:00:23]} 34. Rxc8+ {[%clk 0:00:05]}  Kh7 {[%clk 0:00:23]} 35. Rc2 {[%clk 0:00:04]}  Ra5 {[%clk 0:00:21]} 36. Ra2 {[%clk 0:00:03]}  Ra4 {[%clk 0:00:22]} 37. Kg2 {[%clk 0:00:03]}  Rxd4 {[%clk 0:00:22]} 38. a4 {[%clk 0:00:04]}  Rb4 {[%clk 0:00:23]} 39. a5 {[%clk 0:00:04]}  Rb7 {[%clk 0:00:23]} 40. a6 {[%clk 0:00:05]}  Ra7 {[%clk 0:00:24]} 41. Kf2 {[%clk 0:00:05]}  Kg6 {[%clk 0:00:24]} 42. Ke3 {[%clk 0:00:06]}  e5 {[%clk 0:00:24]} 43. Ra5 {[%clk 0:00:05]}  Kf5 {[%clk 0:00:24]} 44. Kd3 {[%clk 0:00:04]}  Ke6 {[%clk 0:00:24]} 45. Kc3 {[%clk 0:00:04]}  Kd6 {[%clk 0:00:25]} 46. Kb4 {[%clk 0:00:04]}  Kc6 {[%clk 0:00:25]} 47. Rc5+ {[%clk 0:00:03]}  Kd6 {[%clk 0:00:25]} 48. Ra5 {[%clk 0:00:02]}  Kc6 {[%clk 0:00:19]} 49. Rc5+ {[%clk 0:00:02]}  Kd6 {[%clk 0:00:13]} 50. Ra5 {[%clk 0:00:03]} 1/2-1/2


[Site "https://www.chess.com"]

[Event "Titled Tuesday Blitz May 9 Late 2023"]
[White "Rodriguez Fontecha, Marcos"]
[Black "Sieciechowicz, Marcin"]
[WhiteFideId "2256576"]
[BlackFideId "1130170"]
[WhiteElo "2249"]
[BlackElo "2302"]
[Result "0-1"]
[Round "03"]
[TimeControl "180+2"]
[Date "2023.05.09"]
[WhiteClock "0:00:19"]
[BlackClock "0:00:38"]

1. Nf3 {[%clk 0:02:59]}  Nf6 {[%clk 0:03:00]} 2. g4 {[%clk 0:02:59]}  Nxg4 {[%clk 0:02:59]} 3. e4 {[%clk 0:02:59]}  d5 {[%clk 0:02:56]} 4. exd5 {[%clk 0:02:58]}  Qxd5 {[%clk 0:02:56]} 5. Nc3 {[%clk 0:02:59]}  Qe6+ {[%clk 0:02:44]} 6. Be2 {[%clk 0:02:58]}  g6 {[%clk 0:02:42]} 7. d4 {[%clk 0:02:57]}  Bg7 {[%clk 0:02:35]} 8. Rg1 {[%clk 0:02:48]}  Nf6 {[%clk 0:02:30]} 9. Ne5 {[%clk 0:02:46]}  O-O {[%clk 0:02:24]} 10. Bf4 {[%clk 0:02:38]}  c6 {[%clk 0:02:17]} 11. Qd2 {[%clk 0:02:38]}  Nd5 {[%clk 0:02:10]} 12. Nxd5 {[%clk 0:02:28]}  cxd5 {[%clk 0:02:11]} 13. O-O-O {[%clk 0:02:23]}  Nc6 {[%clk 0:02:01]} 14. Nf3 {[%clk 0:02:18]}  Bd7 {[%clk 0:01:53]} 15. Ng5 {[%clk 0:02:12]}  Qf6 {[%clk 0:01:52]} 16. c3 {[%clk 0:02:05]}  Bf5 {[%clk 0:01:52]} 17. Nf3 {[%clk 0:01:55]}  Rac8 {[%clk 0:01:44]} 18. Bg5 {[%clk 0:01:37]}  Nb4 {[%clk 0:01:37]} 19. Qf4 {[%clk 0:00:53]}  Nxa2+ {[%clk 0:01:28]} 20. Kd2 {[%clk 0:00:53]}  Qb6 {[%clk 0:01:29]} 21. Ke1 {[%clk 0:00:44]}  Qxb2 {[%clk 0:01:28]} 22. Kf1 {[%clk 0:00:42]}  Nxc3 {[%clk 0:01:25]} 23. Rd2 {[%clk 0:00:40]}  Nxe2 {[%clk 0:01:03]} 24. Rxb2 {[%clk 0:00:34]}  Nxf4 {[%clk 0:01:03]} 25. Bxf4 {[%clk 0:00:35]}  b5 {[%clk 0:01:03]} 26. Kg2 {[%clk 0:00:27]}  a6 {[%clk 0:01:02]} 27. Ra1 {[%clk 0:00:27]}  Be4 {[%clk 0:00:56]} 28. Be3 {[%clk 0:00:24]}  Rc3 {[%clk 0:00:52]} 29. Rxa6 {[%clk 0:00:23]}  Bxf3+ {[%clk 0:00:40]} 30. Kxf3 {[%clk 0:00:24]}  Bxd4 {[%clk 0:00:40]} 31. Rxb5 {[%clk 0:00:22]}  Bxe3 {[%clk 0:00:39]} 32. fxe3 {[%clk 0:00:23]}  d4 {[%clk 0:00:38]} 33. Re5 {[%clk 0:00:23]}  Rxe3+ {[%clk 0:00:38]} 34. Rxe3 {[%clk 0:00:23]}  dxe3 {[%clk 0:00:39]} 35. Ra7 {[%clk 0:00:19]}  e6 {[%clk 0:00:38]} 0-1


[Site "https://www.chess.com"]